Cogmind - Beta 15 @@@ ROGUE MODE // 2025.08.26 @ 14:16:05 Player: YA-B01 Result: Destroyed by G-73 Enforcer with Heavy Laser Performance ------------- Evolutions (8) 4000 Regions Visited (20) 4000 Robots Destroyed (290) 1450 Value Destroyed (8605) 8605 Prototype IDs (46) 920 Alien Tech Used (8) 1600 Bonus (10525) 10525 TOTAL SCORE: 31100 Bonus ------- Triggered Max Security 1000 High Alert Combat Kills 478 Follower Combat Kills 2247 Registered with UFD 300 Met Optimus in HQ 500 Met Warlord at Base 500 MAIN.C Attacked Warlord 500 Met Sigix 2000 Activated Exoskeleton 3000 Cogmind --------- Core Integrity 0/1450 Matter 300/300 Energy 40/100 System Corruption 9% Temperature Cool (9) Movement Core (50) Location -2/Section 7 Parts ------- > --- POWER (1) -------- (None) > --- PROPULSION (8) --- (None) > --- UTILITY (12) ----- Experimental Signal Interpreter Advanced Hacking Suite Advanced Hacking Suite Advanced System Shield > --- WEAPON (2) ------- (None) > --- INVENTORY (5) ---- Micro-nuke Launcher Makeshift Sword Vortex Lance (40) Peak State ------------ > --- POWER ------------ Light Quantum Reactor > --- PROPULSION ------- Improved Diametric Drive Impulse Thruster Array Impulse Thruster Array Impulse Thruster Array > --- UTILITY ---------- Enhanced Optical Array Long-range Sensor Array Experimental Signal Interpreter Experimental Target Analyzer Advanced Hacking Suite Advanced Hacking Suite Advanced System Shield Improved System Guard Advanced Corruption Screen Microwarp Drive > --- WEAPON ----------- Compact Linear Accelerator Plasma Lance > --- INVENTORY -------- Transdimensional Reconstructor Terrabomb Micro-nuke Launcher Makeshift Sword Vortex Lance [Rating: 192] Favorites ----------- Power Nuclear Core Engine Cooled Ion Engine Power Core Nuclear Core Reactor Light Antimatter Reactor Propulsion Light Treads Treads Light Treads Leg Carbon-fiber Leg Wheel Wheel Flight Unit Field Propulsion Array Utility High-capacity Storage Unit Device Improved Sensor Array Storage High-capacity Storage Unit Processor Improved Signal Interpreter Hackware Hacking Suite Protection Improved Medium Armor Plating Artifact Microwarp Drive Weapon Medium Laser Energy Gun Medium Laser Ballistic Gun Enhanced Autogun Ballistic Cannon Gauss Cannon Launcher EMP Blaster Special Weapon Improved Plasma Cutter Impact Weapon Heavy Flail Slashing Weapon Ionic Axe Piercing Weapon Plasma Lance Special Melee Weapon Improved Datajack Build | -11 -10 -10 -9 -9 -8 -7 -7 -7 -7 -5 -5 -5 -5 -4 -4 -3 -3 -2 -2 -2 ------- Run | Yrd Mat Min Mat Min Mat Fac Sto Rec Scr Fac Upp Upp War Pro Fac Res Tes Res Qua Sec Slots Evolved 16 | . . . 2 . 2 2 . . . 4 . . . . 2 2 . 2 . . Power . | . . . . . . . . . . . . . . . . . . . . . Propulsion 6 | . . . 2 . . 1 . . . 1 . . . . . . . 2 . . Utility 10 | . . . . . 2 1 . . . 3 . . . . 2 2 . . . . Weapon . | . . . . . . . . . . . . . . . . . . . . . Parts Attached 215 | 6 6 3 23 4 35 18 8 3 3 25 5 . 4 3 28 8 7 5 5 16 Power 19 | 1 2 . 1 . 3 1 . . . 4 . . . . 2 . . 2 1 2 Engine 8 | 1 2 . 1 . 2 . . . . 2 . . . . . . . . . . Core 4 | . . . . . 1 1 . . . 2 . . . . . . . . . . Reactor 7 | . . . . . . . . . . . . . . . 2 . . 2 1 2 Propulsion 75 | 2 . 1 10 1 13 11 2 2 . 11 2 . . 1 10 . 3 1 1 4 Treads 37 | 2 . 1 10 1 9 7 2 2 . 3 . . . . . . . . . . Leg 3 | . . . . . 1 2 . . . . . . . . . . . . . . Wheel 3 | . . . . . 3 . . . . . . . . . . . . . . . Hover . | . . . . . . . . . . . . . . . . . . . . . Flight 32 | . . . . . . 2 . . . 8 2 . . 1 10 . 3 1 1 4 Utility 74 | 1 4 1 3 1 9 3 3 . 2 9 3 . 1 2 12 7 4 2 2 5 Device 30 | . 2 1 1 . 2 . 1 . 1 5 3 . 1 1 4 4 1 2 . 1 Storage 9 | 1 2 . 1 . 1 . . . . 1 . . . . 2 . . . 1 . Processor 15 | . . . . . 1 1 1 . . 2 . . . . 3 3 . . 1 3 Hackware 10 | . . . . . . 1 . . 1 1 . . . 1 3 . 3 . . . Protection 9 | . . . 1 1 5 1 1 . . . . . . . . . . . . . Artifact 1 | . . . . . . . . . . . . . . . . . . . . 1 Weapon 47 | 2 . 1 9 2 10 3 3 1 1 1 . . 3 . 4 1 . . 1 5 Energy Gun 8 | 2 . 1 4 . . . . . . . . . . . . . . . . 1 Energy Cannon . | . . . . . . . . . . . . . . . . . . . . . Ballistic Gun 11 | . . . 2 1 5 3 . . . . . . . . . . . . . . Ballistic Cannon 5 | . . . . . 1 . 3 . . . . . . . . . . . . 1 Launcher 5 | . . . 2 1 2 . . . . . . . . . . . . . . . Special Weapon 5 | . . . . . . . . . 1 . . . 2 . 1 . . . . 1 Impact Weapon 3 | . . . . . 2 . . . . . . . . . 1 . . . . . Slashing Weapon 3 | . . . . . . . . . . . . . 1 . 1 1 . . . . Piercing Weapon 3 | . . . . . . . . . . . . . . . 1 . . . . 2 Special Melee Weapon 4 | . . . 1 . . . . 1 . 1 . . . . . . . . 1 . Unidentified Prototypes 25 | . . . 2 . 1 2 . . 1 1 1 . 2 . 3 . 1 . 2 9 Parts Lost 110 | . . 2 4 3 20 7 4 . . 22 4 1 . 2 11 . 5 . . 25 Power 12 | . . . 1 . 3 . . . . 4 . . . . 1 . . . . 3 Propulsion 45 | . . 1 1 1 8 4 . . . 10 3 . . 1 5 . 2 . . 9 Utility 33 | . . . 2 1 5 1 3 . . 5 1 . . . 4 . 3 . . 8 Weapon 20 | . . 1 . 1 4 2 1 . . 3 . 1 . 1 1 . . . . 5 Highest Loss Streak 13 | . . 1 1 3 12 4 2 . . 11 2 1 . 2 5 . 4 . . 13 To Critical Strikes 2 | . . . . . . . . . . 1 . . . . . . . . . 1 Average Backups 15 | 4 10 14 16 18 18 19 19 20 20 13 8 9 10 10 11 13 12 9 9 7 Power 1 | . . 1 1 1 . 1 1 1 2 1 1 1 1 1 1 1 1 . 1 . Propulsion 3 | 2 1 1 1 2 2 3 7 10 10 4 . . . . 1 2 1 . . . Utility 5 | . 4 7 8 8 7 5 3 2 2 3 4 4 5 5 3 5 4 4 4 2 Weapon 4 | . 1 3 4 5 6 8 6 5 6 3 1 2 3 4 4 5 4 4 4 3 Tool/Special . | . . . . . . . . . . . . . . . . . . . . . Unused Backups 57 | 5 3 1 11 . 9 8 . 1 . 4 1 1 1 . 3 2 2 1 . 4 Power 6 | . . . 2 . 1 1 . . . 1 . . . . . 1 . . . . Propulsion 9 | 2 3 . . . 1 . . 1 . 1 . . . . 1 . . . . . Utility 26 | 3 . . 4 . 5 3 . . . 1 1 1 . . 2 1 1 1 . 3 Weapon 14 | . . . 4 . 2 4 . . . 1 . . 1 . . . 1 . . 1 Tool/Special 2 | . . 1 1 . . . . . . . . . . . . . . . . . Average Slot Usage (%) 91 | . 98 99 97 99 97 97 96 100 96 78 87 75 80 90 84 81 82 76 84 69 Engine 4 | . 14 14 11 11 5 3 . . . 2 . . . . . . . . . . Core 2 | . . . . . 3 3 6 7 7 2 5 5 5 5 . . . . . . Treads 24 | . 28 27 41 43 31 34 37 38 38 14 . . . . . . . . . . Flight 6 | . . . . . . . . . . 14 26 23 23 27 23 19 18 17 20 16 Device 9 | . 12 14 6 . 8 7 6 7 8 11 16 11 11 15 10 11 14 15 17 6 Storage 7 | . 14 14 11 11 9 7 7 7 7 4 5 5 5 5 5 4 4 4 4 1 Processor 8 | . . . . . 8 7 9 15 11 10 17 17 17 17 12 18 13 8 8 16 Hackware 5 | . . . . . . 6 2 . 2 5 5 5 5 5 19 16 21 21 21 13 Protection 3 | . . . 4 11 8 7 7 7 5 . . . . . . . . . . . Energy Gun 4 | . 28 28 12 . . . . . . . . . . . . . . . . . Ballistic Gun 4 | . . . 9 21 13 12 7 . . . . . . . . . . . . . Ballistic Cannon 1 | . . . . . . . 6 10 . 4 . . . . . . . . . 1 Impact Weapon 1 | . . . . . 3 1 . . 6 2 5 4 . . 2 2 . . . . Peak Build Rating 192 | 7 9 9 25 27 32 47 42 43 47 72 78 61 78 83 111 134 124 131 148 192 Average Rating 49 | 5 7 8 18 26 26 37 39 42 41 52 72 60 68 80 97 122 119 127 143 165 On Entrance 57 | . 6 9 9 25 27 26 41 42 41 44 72 61 58 70 72 106 114 102 131 148 Naked Turns . | . . . . . . . . . . . . . . . . . . . . . Heaviest Build 71 | 12 30 30 58 58 67 64 69 69 69 71 27 22 23 28 47 44 42 36 47 51 Greatest Support 123 | 40 40 40 92 92 92 108 108 108 108 123 37 28 28 35 44 44 44 52 59 64 Greatest Overweight (x) 18 | . . . . . 5 . . . . 18 . . . . 1 13 11 . . 2 Average Overweight (x) . | . . . . . . . . . . . . . . . . . . . . . Largest Inventory Capacity 20 | 8 15 15 20 20 20 20 20 20 20 20 10 10 10 10 15 15 15 10 15 15 Average Capacity 16 | 7 12 15 17 20 20 20 20 20 20 15 10 10 10 10 12 15 14 10 14 8 Most Carried 20 | 8 15 15 20 20 20 20 20 20 20 20 10 10 10 10 15 15 15 10 12 15 Average Carried 15 | 4 10 14 16 18 18 19 19 19 20 13 9 9 9 9 12 15 14 9 10 8 Final Capacity 20 | 8 15 15 20 20 20 20 20 20 20 10 10 10 10 10 15 15 10 10 15 5 Final Carried 20 | 5 15 15 20 20 20 20 20 20 20 10 8 10 10 9 15 15 10 10 12 3 Class Distribution -------------------- 38% | Mutant 18% | Scavenger-Mutant 13% | Commander-Mutant 10% | Hacker-Ninja 5% | Infiltrator-Ninja 3% | Ninja Dominant Class ---------------- Mutant | -10/Materials Mutant | -10/Mines Mutant | -9/Materials Mutant | -9/Mines Scavenger-Mutant | -8/Materials Mutant | -7/Factory Mutant | -7/Storage Commander-Mutant | -7/Recycling Commander-Mutant | -7/Scraptown Mutant | -5/Factory Infiltrator-Ninja | -5/Upper Caves Ninja | -5/Upper Caves Ninja | -5/Warlord Derelict-Ninja | -4/Proximity Caves Hacker-Ninja | -4/Factory Hacker-Ninja | -3/Research Hacker-Ninja | -3/Testing Hacker-Ninja | -2/Research Hacker-Ninja | -2/Quarantine Scavenger-Scout | -2/Section 7 Resources | -11 -10 -10 -9 -9 -8 -7 -7 -7 -7 -5 -5 -5 -5 -4 -4 -3 -3 -2 -2 -2 ----------- Run | Yrd Mat Min Mat Min Mat Fac Sto Rec Scr Fac Upp Upp War Pro Fac Res Tes Res Qua Sec Matter Collected 6880 | 308 252 30 847 193 1406 687 424 419 72 875 400 . 40 20 158 73 165 45 148 318 Remotely . | . . . . . . . . . . . . . . . . . . . . . Salvage Created 9292 | 267 516 165 1772 47 1934 1101 479 644 . 500 1021 . . . 210 73 80 45 148 290 Parts 493 | 18 41 10 99 9 104 47 39 17 . 29 34 . . . 9 6 8 3 4 16 Haulers Intercepted 15 | . 2 . 5 . 5 1 1 . . . 1 . . . . . . . . . Recyclers Shooed 18 | 1 1 2 3 1 . 1 1 5 . 3 . . . . . . . . . . Parts Field Recycled . | . . . . . . . . . . . . . . . . . . . . . Retrieved Matter . | . . . . . . . . . . . . . . . . . . . . . Parts Self-Destructed 7 | . . . . . . . . . . . 7 . . . . . . . . . Prevented 25 | . . . . . . . . . . . 25 . . . . . . . . . Kills | -11 -10 -10 -9 -9 -8 -7 -7 -7 -7 -5 -5 -5 -5 -4 -4 -3 -3 -2 -2 -2 ------- Run | Yrd Mat Min Mat Min Mat Fac Sto Rec Scr Fac Upp Upp War Pro Fac Res Tes Res Qua Sec Combat Hostiles Destroyed 187 | . 11 5 33 16 40 19 11 9 . 17 16 . . . 8 . . . . 2 Melee 8 | . . . . . 3 2 . . . 1 . . . . . . . . . 2 Guns 79 | . 10 5 24 2 21 14 3 . . . . . . . . . . . . . Cannons 19 | . . . . . 1 . 1 9 . 8 . . . . . . . . . . AOE 67 | . . . 8 14 14 . 7 . . 7 9 . . . 8 . . . . . Classes Destroyed 21 | 3 6 . 3 2 2 2 . . . . . . . . . . . . . 3 Worker 23 | 2 2 . 2 . 5 . 5 . . 4 . . . . . . 1 2 . . Builder 10 | . 1 . 1 . 3 2 . 1 . 1 . . . . . 1 . . . . Tunneler 12 | 8 . 1 1 . . 2 . . . . . . . . . . . . . . Hauler 15 | . 2 . 5 . 5 1 1 . . . 1 . . . . . . . . . Recycler 17 | 1 . . 3 . 2 3 1 5 . . . . . . 1 . . . 1 . Mechanic 3 | . . . 1 . . 1 1 . . . . . . . . . . . . . Operator 9 | . 2 . 2 . 2 . . . . . . . . . . 1 1 . 1 . Watcher 20 | . 3 . 4 . 4 . 1 . . 3 . . . . 2 1 1 . . 1 Swarmer 61 | . 6 3 8 7 7 . 7 . . 10 5 . . . 8 . . . . . Grunt 71 | . 5 2 14 . 22 11 . 3 . 4 10 . . . . . . . . . Brawler 2 | . . . 1 . . . . . . 1 . . . . . . . . . . Researcher 1 | . . . . . . . . . . . . . . . . . . . . 1 Sentry 29 | . . . 10 . 8 3 4 3 . . 1 . . . . . . . . . Demolisher 2 | . . . . 2 . . . . . . . . . . . . . . . . Specialist 2 | . . . . . 2 . . . . . . . . . . . . . . . Hunter 3 | . . . . . . 3 . . . . . . . . . . . . . . Programmer 7 | . . . . . . 2 . 3 . 2 . . . . . . . . . . Heavy 1 | . . . . . 1 . . . . . . . . . . . . . . . Striker 1 | . . . . . . . . . . . . . . . . . . . . 1 Executioner 1 | . . . . . . . . . . . . . . . . . . . . 1 Assembled 7 | . . . . 7 . . . . . . . . . . . . . . . . Best Kill Streak 9 | 4 5 2 8 7 9 4 9 5 . 7 4 . . . 5 2 1 1 1 1 Combat Bots Only 8 | . 3 2 5 7 8 3 7 4 . 5 4 . . . 4 . . . . 1 Max Kills in Single Turn 4 | 1 2 1 4 4 2 1 4 2 . 4 4 . . . 4 1 1 1 1 1 Gunslinging . | . . . . . . . . . . . . . . . . . . . . . Exploded 4 | . . . 3 4 2 . 4 . . 4 4 . . . 3 . . . . . Melee 1 | . . . . . 1 1 . . . 1 . . . . . . . . . 1 Uniques/NPCs Destroyed . | . . . . . . . . . . . . . . . . . . . . . Combat | -11 -10 -10 -9 -9 -8 -7 -7 -7 -7 -5 -5 -5 -5 -4 -4 -3 -3 -2 -2 -2 -------- Run | Yrd Mat Min Mat Min Mat Fac Sto Rec Scr Fac Upp Upp War Pro Fac Res Tes Res Qua Sec Hostile Shots Fired 1732 | . 45 28 142 30 288 195 125 80 . 243 43 5 . 35 179 9 92 . 19 174 Missed 655 | . 7 9 36 6 66 65 46 33 . 105 21 2 . 14 98 6 49 . 14 78 Hits 1077 | . 38 19 106 24 222 130 79 47 . 138 22 3 . 21 81 3 43 . 5 96 Melee 3 | . . . . 1 . . . . . . . . . . . . . . . 2 Projectile 1074 | . 38 19 106 23 222 130 79 47 . 138 22 3 . 21 81 3 43 . 5 94 AOE 14 | . . . . 11 . . . . . 1 . . . 1 1 . . . . . Critical Strikes 32 | . . . 6 . 5 . . 1 . 7 1 . . . 3 . 5 . . 4 Part Disruptions 3 | . . . . . . . . 1 . . . . . . . . 1 . . 1 Damage Taken 18363 | . 411 228 1387 643 3819 1572 607 381 . 2811 491 51 . 341 1244 74 861 . 73 3369 Core 3950 | . 95 60 126 155 474 175 65 50 . 518 176 . . 106 354 24 249 . . 1323 Absorbed by Shields 236 | . . . . . . . . . . 195 . . . 41 . . . . . . Ignored by Resistances 178 | . . . 80 3 38 . . . . . . . . . . . . . . 57 Regen/Repaired (Parts) 663 | . . . 154 . 153 . 183 . . 20 . . 24 . . . 69 60 . . Core Remaining (%) 50 | 100 . 38 . 29 13 . . . 58 . . . . 20 69 . 79 . . . Volleys Fired 606 | 26 43 27 146 13 125 44 26 28 . 68 54 . . . 6 . . . . . Largest 2 | 2 2 2 2 2 2 2 2 2 . 2 1 . . . 1 . . . . . Hottest 121 | 100 100 100 121 50 73 56 80 80 . 80 33 . . . 33 . . . . . Shots Fired 1059 | 52 86 54 279 19 220 87 48 55 . 99 54 . . . 6 . . . . . Gun 767 | 52 86 54 273 12 182 86 22 . . . . . . . . . . . . . Cannon 182 | . . . . . 10 . 24 55 . 93 . . . . . . . . . . Launcher 107 | . . . 6 7 28 1 2 . . 6 54 . . . 3 . . . . . Special 3 | . . . . . . . . . . . . . . . 3 . . . . . Kinetic 617 | . . . 133 12 192 86 46 55 . 93 . . . . . . . . . . Thermal 332 | 52 86 54 140 . . . . . . . . . . . . . . . . . Explosive 52 | . . . 6 7 27 1 2 . . 6 . . . . 3 . . . . . Electromagnetic 58 | . . . . . 1 . . . . . 54 . . . 3 . . . . . Robot Hit Streak 25 | 8 9 6 25 5 13 9 10 18 . 6 1 . . . . . . . . . Robot Miss Streak 10 | 1 3 5 4 1 6 10 3 2 . 4 1 . . . 2 . . . . . Penetration Max 1 | . . . . . . . 1 . . 1 . . . . . . . . . . Secondary Targets 5 | . . 1 . 1 1 2 . . . . . . . . . . . . . . Max Gunslinging Chain 1 | . . 1 . 1 1 1 . . . . . . . . . . . . . . Shots Hit Robots 766 | 37 56 25 183 10 142 100 39 66 . 60 7 . . . 11 4 6 2 6 12 Core Hits 530 | 10 31 10 73 24 108 105 49 16 . 34 39 . . . 16 3 4 1 2 5 Critical Kills 3 | . . . . . 2 . . . . 1 . . . . . . . . . . Critical Parts Destroyed 12 | . . . 1 . 6 5 . . . . . . . . . . . . . . Critical Strikes 52 | 3 1 3 8 . 9 5 3 6 . 11 . . . . 1 . 1 . . 1 Burn 13 | 3 1 3 6 . . . . . . . . . . . . . . . . . Destroy 7 | . . . 2 . 5 . . . . . . . . . . . . . . . Blast 19 | . . . . . . . 3 6 . 10 . . . . . . . . . . Smash 10 | . . . . . 4 5 . . . 1 . . . . . . . . . . Sever 2 | . . . . . . . . . . . . . . . 1 . 1 . . . Impale 1 | . . . . . . . . . . . . . . . . . . . . 1 Melee Attacks 367 | . . . . . 28 34 . 26 . 44 13 1 . . 101 16 20 21 27 36 Impact 158 | . . . . . 28 34 . . . 44 13 1 . . 38 . . . . . Slashing 165 | . . . . . . . . . . . . . . . 63 16 20 21 27 18 Piercing 18 | . . . . . . . . . . . . . . . . . . . . 18 Sneak Attacks 53 | . . . . . 9 6 . 26 . 2 . . . . 3 2 1 2 1 1 Combat Hostiles 1 | . . . . . . 1 . . . . . . . . . . . . . . Follow-up Attacks 1 | . . . . . . . . . . . . . . . . . . . . 1 Damage Inflicted 25147 | 480 760 321 3501 911 5363 2747 1453 1277 . 3010 1661 . . . 1682 355 363 212 437 614 Guns 8495 | 480 715 306 2825 148 2149 1417 455 . . . . . . . . . . . . . Cannons 3281 | . . . . . 82 . 471 1188 . 1540 . . . . . . . . . . Explosions 7131 | . . . 521 735 1970 . 447 . . 1045 1330 . . . 1083 . . . . . Melee 5606 | . . . . . 1029 1262 . . . 404 331 . . . 599 355 363 212 437 614 Ramming 634 | . 45 15 155 28 133 68 80 89 . 21 . . . . . . . . . . Kinetic 8920 | . . . 1470 148 2231 1417 926 1188 . 1540 . . . . . . . . . . Thermal 2973 | 480 715 306 1355 . . . . . . . 117 . . . . . . . . . Explosive 5650 | . . . 521 735 1922 . 447 . . 1045 . . . . 980 . . . . . Electromagnetic 1364 | . . . . . 48 . . . . . 1213 . . . 103 . . . . . Impact 3083 | . . . . . 1029 1262 . . . 404 331 . . . 57 . . . . . Slashing 2301 | . . . . . . . . . . . . . . . 542 355 363 212 437 392 Piercing 222 | . . . . . . . . . . . . . . . . . . . . 222 Highest Corruption 9 | . . . . . . 6 6 7 . 5 5 . . . 4 . 1 . 1 9 Average Corruption 4 | . . . . . . 5 6 6 . 4 4 . . . 3 . 1 . 1 1 Corruption Purged 5 | . . . . . . . . . . . 5 . . . . . . . . . Corruption Blocked 10 | . . . . . . . . . . . 4 . . 3 1 . . . . 2 Effects 141 | . . . . . . 32 11 37 . 28 16 . . . 13 . . . 3 1 Message Errors 37 | . . . . . . 7 4 8 . 8 5 . . . 4 . . . 1 . Matter Fused 37 | . . . . . . 7 2 11 . 7 6 . . . 2 . . . 2 . Heat Flow Errors 18 | . . . . . . 5 1 4 . 3 2 . . . 3 . . . . . Energy Discharges 11 | . . . . . . 4 . 2 . 2 1 . . . 2 . . . . . Parts Rejected 1 | . . . . . . . . . . 1 . . . . . . . . . . Parts Fused 2 | . . . . . . 1 . . . 1 . . . . . . . . . . Data Loss (minor) 20 | . . . . . . 4 3 6 . 2 2 . . . 2 . . . . 1 Data Loss (major) 5 | . . . . . . 1 . 2 . 2 . . . . . . . . . . Misfires 2 | . . . . . . 1 . 1 . . . . . . . . . . . . Alerts 4 | . . . . . . 2 . 1 . 1 . . . . . . . . . . Weapon Failures 4 | . . . . . . . 1 2 . 1 . . . . . . . . . . Overload Shots . | . . . . . . . . . . . . . . . . . . . . . Overflow Damage 2209 | . . . 20 54 644 403 6 96 . 456 60 . . . 177 73 16 48 116 40 Projectiles 144 | . . . . . 9 . 6 96 . 33 . . . . . . . . . . Explosions 510 | . . . 15 54 94 . . . . 273 . . . . 74 . . . . . Melee 1555 | . . . 5 . 541 403 . . . 150 60 . . . 103 73 16 48 116 40 Knockbacks 52 | . 1 . 1 1 9 6 2 6 . 25 1 . . . . . . . . . Impact 18 | . 1 . 1 1 7 5 1 . . 1 1 . . . . . . . . . Kinetic 30 | . . . . . 1 . 1 6 . 22 . . . . . . . . . . Secondary 4 | . . . . . 1 1 . . . 2 . . . . . . . . . . Self-Inflicted Damage 801 | . . . 117 54 115 . . . . 421 82 . . . 12 . . . . . Shots 21 | . . . 3 2 3 . . . . 6 6 . . . 1 . . . . . Rammed 79 | . 11 4 17 2 20 3 7 9 . 6 . . . . . . . . . . Targets Rammed 91 | . 11 4 20 2 23 3 10 11 . 7 . . . . . . . . . . Kicked . | . . . . . . . . . . . . . . . . . . . . . Crushed 12 | . . . 3 . 3 . 3 2 . 1 . . . . . . . . . . Highest Temperature 360 | 351 345 312 360 13 108 266 126 214 . 128 171 . . . 119 . 14 . . 8 Average Temperature 76 | 160 113 104 79 7 21 81 22 43 . 40 59 . . . 50 . 9 . . 4 Received Heat Transfer 4051 | . 183 84 633 40 1557 459 144 66 . 335 135 . . 18 75 . 142 . 9 171 Effects 7 | 1 2 1 2 . . 1 . . . . . . . . . . . . . . Energy Bleed 4 | . 1 1 1 . . 1 . . . . . . . . . . . . . . Matter Decay 1 | 1 . . . . . . . . . . . . . . . . . . . . Short Circuit 1 | . 1 . . . . . . . . . . . . . . . . . . . Damage (minor) 1 | . . . 1 . . . . . . . . . . . . . . . . . Siege Activations . | . . . . . . . . . . . . . . . . . . . . . Martial Activations . | . . . . . . . . . . . . . . . . . . . . . Shielding Activations . | . . . . . . . . . . . . . . . . . . . . . Robots Disrupted 1 | . . . . . . . . . . . . . . . 1 . . . . . Combat Hostiles 1 | . . . . . . . . . . . . . . . 1 . . . . . Robots Corrupted 20 | . . . . . 5 6 . . . 1 8 . . . . . . . . . Combat Hostiles 12 | . . . . . 1 3 . . . 1 7 . . . . . . . . . Parts Fried 34 | . . . . . 11 10 . . . 3 9 . . . 1 . . . . . Impact Corruptions 37 | . . . 1 . 17 12 . . . 4 3 . . . . . . . . . Robots Melted 4 | 2 1 . 1 . . . . . . . . . . . . . . . . . Combat Hostiles 2 | . 1 . 1 . . . . . . . . . . . . . . . . . Parts Melted 25 | 3 7 1 14 . . . . . . . . . . . . . . . . . Heat Transferred 9104 | 1628 2183 1147 3996 . . . . . . . 150 . . . . . . . . . Parts Sabotaged . | . . . . . . . . . . . . . . . . . . . . . Parts Stolen . | . . . . . . . . . . . . . . . . . . . . . Parts Stripped . | . . . . . . . . . . . . . . . . . . . . . Power Chain Reactions 4 | . . . . . . . . . . . 4 . . . . . . . . . Alert | -11 -10 -10 -9 -9 -8 -7 -7 -7 -7 -5 -5 -5 -5 -4 -4 -3 -3 -2 -2 -2 ------- Run | Yrd Mat Min Mat Min Mat Fac Sto Rec Scr Fac Upp Upp War Pro Fac Res Tes Res Qua Sec Maximum Alert Level 5 | . 1 . 2 1 2 1 1 1 . 2 . . . . 2 1 . . . 5 Low Security (%) 51 | 100 90 100 28 20 22 71 46 66 . 18 . . . . 36 91 100 100 100 17 Level 1 27 | . 9 . 42 79 27 28 53 33 . 34 . . . . 39 8 . . . 3 Level 2 18 | . . . 28 . 50 . . . . 46 . . . . 23 . . . . . Level 3 . | . . . . . . . . . . . . . . . . . . . . . Level 4 . | . . . . . . . . . . . . . . . . . . . . . Level 5 . | . . . . . . . . . . . . . . . . . . . . . High Security . | . . . . . . . . . . . . . . . . . . . . . Max Security 2 | . . . . . . . . . . . . . . . . . . . . 78 Peak Influence 2974 | 10 233 75 637 364 631 277 286 291 . 681 . . . . 556 250 126 30 52 2974 Initial 272 | . . 70 . 241 52 272 35 106 . . . . . . 37 250 70 30 . 24 Average 284 | 1 54 17 294 264 397 129 164 181 . 416 . . . . 261 112 79 7 11 1878 Influence Increases 12087 | 55 439 170 1200 273 1407 612 486 487 . 1611 1080 . 15 60 1531 166 300 90 223 1882 Destroy 0b10 Robot/C 4380 | . 220 100 660 180 800 380 220 200 . 480 320 . . . 160 . . . . 660 Destroy 0b10 Robot/NC 565 | 55 50 5 95 . 105 45 45 35 . 40 5 . . . 15 15 15 10 10 20 Destroy Leader 876 | . 60 20 208 30 198 112 64 . . 76 20 . . . 24 2 2 . . 60 Allied During Kill 279 | . . . . . . . . 42 . 61 . . . . . . . . . 176 Successful Hack 681 | . 17 . 25 . 45 50 57 54 . 84 . . . . 160 82 66 8 18 15 Select Force Hacks 350 | . 60 . 60 . 30 . . 120 . 80 . . . . . . . . . . Disable Machine 615 | . . . 30 . 45 15 75 15 . 120 . . . . 105 15 30 . 45 120 Anti-Garrison Action 150 | . . . . . . . . . . . . . . . 150 . . . . . Destroy Structure 891 | . 2 . 32 63 109 10 25 21 . 250 . . . . 242 22 22 57 30 6 Partial Spotted 330 | . . . . . . . . . . 60 . . . . 165 30 15 . 60 . Lose Combat Pursuer 2970 | . 30 45 90 . 75 . . . . 360 735 . 15 60 510 . 150 15 60 825 Influence Decreases 10510 | 55 257 352 581 758 942 1133 289 599 163 933 708 280 780 5 1113 518 372 144 179 349 Entered New Map 2852 | . . 112 . 378 82 327 43 169 163 . 252 200 770 5 23 228 56 24 . 20 Time Decay 5629 | 55 257 230 541 350 660 586 206 410 . 573 416 70 10 . 530 140 246 120 169 60 Search Patrol Dispatched 150 | . . . . . . . . . . . . . . . 150 . . . . . Lost Part 1070 | . . 10 40 30 200 70 40 . . 220 40 10 . . 110 . 50 . . 250 Lost Ally 209 | . . . . . . . . 20 . 140 . . . . . . 20 . 10 19 Purge Threat 600 | . . . . . . 150 . . . . . . . . 300 150 . . . . Squads Dispatched 120 | . 2 . 6 . 8 9 2 . . 25 . . . . 21 3 7 3 3 31 Investigation 33 | . 2 . 3 . 4 2 . . . 9 . . . . 11 1 . 1 . . Extermination 19 | . . . . . . 2 . . . 4 . . . . 5 1 2 2 3 . Reinforcement 26 | . . . 3 . 4 3 2 . . 5 . . . . 2 1 5 . . 1 Assault 36 | . . . . . . 2 . . . 1 . . . . 3 . . . . 30 Garrison 6 | . . . . . . . . . . 6 . . . . . . . . . . Intercept . | . . . . . . . . . . . . . . . . . . . . . Searches Triggered 1 | . . . . . . . . . . . . . . . 1 . . . . . Construction Impeded 7 | . . . 1 . 1 1 . . . 3 . . . . 1 . . . . . Haulers Reinforced 4 | . . . . . . 1 2 . . 1 . . . . . . . . . . Active Scanning Responses . | . . . . . . . . . . . . . . . . . . . . . Cargo Convoy Interrupts 1 | . . . . . . 1 . . . . . . . . . . . . . . Stealth | -11 -10 -10 -9 -9 -8 -7 -7 -7 -7 -5 -5 -5 -5 -4 -4 -3 -3 -2 -2 -2 --------- Run | Yrd Mat Min Mat Min Mat Fac Sto Rec Scr Fac Upp Upp War Pro Fac Res Tes Res Qua Sec Distress Signals 26 | . 3 1 4 . 3 . 2 . . . . . . 2 5 . 3 . . 3 Communications Jammed 1 | . . . . . . . . . . 1 . . . . . . . . . . Distress Signals 1 | . . . . . . . . . . 1 . . . . . . . . . . Times Spotted 711 | . 20 8 59 28 58 22 15 7 . 86 45 1 12 7 85 6 57 2 19 174 Peak Tracking Total 42 | . 3 3 6 19 8 3 3 4 . 16 5 1 7 7 11 4 14 1 10 42 Tactical Retreats 102 | . 2 3 5 . 3 . . . . 15 19 . 2 1 24 . 10 1 1 16 Traps | -11 -10 -10 -9 -9 -8 -7 -7 -7 -7 -5 -5 -5 -5 -4 -4 -3 -3 -2 -2 -2 ------- Run | Yrd Mat Min Mat Min Mat Fac Sto Rec Scr Fac Upp Upp War Pro Fac Res Tes Res Qua Sec Traps Triggered 7 | . . . . . 2 . . . . 2 . . . 1 . . . 1 1 . Indirectly . | . . . . . . . . . . . . . . . . . . . . . Trap Hack Attempts 73 | . . . 73 . . . . . . . . . . . . . . . . . Triggered . | . . . . . . . . . . . . . . . . . . . . . Disarmed . | . . . . . . . . . . . . . . . . . . . . . Reprogrammed 1 | . . . 1 . . . . . . . . . . . . . . . . . Reused . | . . . . . . . . . . . . . . . . . . . . . Traps Extracted . | . . . . . . . . . . . . . . . . . . . . . Installed . | . . . . . . . . . . . . . . . . . . . . . Triggered . | . . . . . . . . . . . . . . . . . . . . . Objects Rigged 3 | . . . . . 3 . . . . . . . . . . . . . . . Machines | -11 -10 -10 -9 -9 -8 -7 -7 -7 -7 -5 -5 -5 -5 -4 -4 -3 -3 -2 -2 -2 ---------- Run | Yrd Mat Min Mat Min Mat Fac Sto Rec Scr Fac Upp Upp War Pro Fac Res Tes Res Qua Sec Machines Disabled 45 | . . . 2 . 3 1 5 1 . 8 . . . . 8 1 2 . 3 11 Max in Single Turn 2 | . . . 1 . 1 1 1 1 . 2 . . . . 2 1 1 . 1 1 Garrison Access 11 | . . . . . 1 2 . . . 2 . . . . 3 . 1 . 1 1 Machines Repaired . | . . . . . . . . . . . . . . . . . . . . . Machines Dismantled . | . . . . . . . . . . . . . . . . . . . . . Machines Sabotaged . | . . . . . . . . . . . . . . . . . . . . . Overloaded Fab Kills 3 | . . . . . . . . . . 3 . . . . . . . . . . Hacking | -11 -10 -10 -9 -9 -8 -7 -7 -7 -7 -5 -5 -5 -5 -4 -4 -3 -3 -2 -2 -2 --------- Run | Yrd Mat Min Mat Min Mat Fac Sto Rec Scr Fac Upp Upp War Pro Fac Res Tes Res Qua Sec Machines Accessed 173 | . 11 . 15 1 12 11 5 11 9 26 . . 5 1 31 8 10 6 7 4 Terminals 95 | . 8 . 9 1 8 8 3 6 . 10 . . . 1 16 5 7 4 6 3 Fabricators 11 | . . . . . . 1 . . . 4 . . . . 3 2 1 . . . Repair Stations 12 | . 1 . 2 . 2 1 1 . . 2 . . . . 1 . 1 1 . . Recycling Units 28 | . 2 . 2 . 1 . 1 5 . 7 . . . . 8 1 . 1 . . Scanalyzers 3 | . . . 2 . . . . . . 1 . . . . . . . . . . Garrison Access 10 | . . . . . 1 1 . . . 2 . . . . 3 . 1 . 1 1 Total Hacks 487 | . 36 . 39 3 30 26 15 18 45 65 . . 9 2 101 28 32 16 13 9 Successful 291 | . 22 . 25 . 18 11 11 8 45 41 . . 9 2 52 14 13 8 5 7 Failed 196 | . 14 . 14 3 12 15 4 10 . 24 . . . . 49 14 19 8 8 2 Catastrophic 28 | . 2 . 3 . 1 . 1 3 . 3 . . . . 7 1 5 1 1 . Database Lockouts . | . . . . . . . . . . . . . . . . . . . . . Manual 265 | . 24 . 19 3 16 14 10 18 . 42 . . . . 66 21 13 8 7 4 Terminals 306 | . 30 . 23 3 24 19 10 13 . 32 . . . 2 69 23 26 13 11 8 Fabricators 28 | . . . . . . 3 . . . 10 . . . . 9 4 2 . . . Repair Stations 28 | . 2 . 5 . 4 2 4 . . 4 . . . . 2 . 3 2 . . Recycling Units 43 | . 4 . 4 . 1 . 1 5 . 12 . . . . 14 1 . 1 . . Scanalyzers 10 | . . . 7 . . . . . . 3 . . . . . . . . . . Garrison Access 18 | . . . . . 1 2 . . . 4 . . . . 7 . 1 . 2 1 Terminal Hacks 113 | . 5 . 5 . 4 3 1 . 45 6 . . 9 2 16 5 5 2 2 3 Record 46 | . . . . . . . . . 36 . . . 7 2 . . . . 1 . Part Schematic 1 | . . . . . . . . . . . . . . . . . 1 . . . Robot Analysis 9 | . . . . . . 1 . . 8 . . . . . . . . . . . Prototype ID Bank 11 | . 5 . 3 . 1 . . . . . . . . . 2 . . . . . Open Door 4 | . . . . . . . . . . . . . 2 . . . 1 . 1 . Level Access Points 1 | . . . . . . . . . . . . . . . . 1 . . . . Branch Access Points 5 | . . . . . . . . . . 1 . . . . 1 1 . 1 . 1 Recycling Unit Index 2 | . . . . . . . . . . 1 . . . . 1 . . . . . Alert Level 8 | . . . . . 2 1 . . . 1 . . . . 2 1 1 . . . Unreport Threat 4 | . . . . . . 1 . . . . . . . . 2 1 . . . . Locate Traps 12 | . . . 2 . 1 . 1 . . 1 . . . . 4 1 1 1 . . Extermination Status 1 | . . . . . . . . . . . . . . . 1 . . . . . Recall Extermination 3 | . . . . . . . . . . 1 . . . . 2 . . . . . Recall Reinforcements 3 | . . . . . . . . . . 1 . . . . 1 . 1 . . . Zone Layout 1 | . . . . . . . . . . . . . . . . . . . . 1 Proto ID Catalog 1 | . . . . . . . . . 1 . . . . . . . . . . . Activate Exoskeleton 1 | . . . . . . . . . . . . . . . . . . . . 1 Fabricator Hacks 1 | . . . . . . 1 . . . . . . . . . . . . . . Network Status 1 | . . . . . . 1 . . . . . . . . . . . . . . Repair Station Hacks 17 | . 1 . 4 . 2 . 4 . . 2 . . . . . . 2 2 . . Scan Component 9 | . 1 . 2 . 1 . 2 . . 1 . . . . . . 1 1 . . Repair 8 | . . . 2 . 1 . 2 . . 1 . . . . . . 1 1 . . Recycling Unit Hacks 8 | . 1 . 1 . . . . . . 3 . . . . 3 . . . . . Retrieve Components 8 | . 1 . 1 . . . . . . 3 . . . . 3 . . . . . Scanalyzer 6 | . . . 4 . . . . . . 2 . . . . . . . . . . Insert Component 3 | . . . 2 . . . . . . 1 . . . . . . . . . . Analyze 3 | . . . 2 . . . . . . 1 . . . . . . . . . . Garrison Access Hacks 9 | . . . . . 1 1 . . . 2 . . . . 2 . 1 . 1 1 Seal Access 9 | . . . . . 1 1 . . . 2 . . . . 2 . 1 . 1 1 Unauthorized Hacks 137 | . 15 . 11 . 11 6 6 8 . 26 . . . . 31 9 5 4 2 3 Terminals 92 | . 13 . 9 . 10 4 6 4 . 11 . . . . 19 4 4 3 2 3 Track 8 | . 3 . 1 . . . . 1 . 1 . . . . 1 1 . . . . Assimilate 9 | . . . . . . . . . . 3 . . . . 1 . . 1 2 2 Botnet 22 | . 2 . 2 . 2 1 2 . . 3 . . . . 6 1 2 1 . . Detonate 2 | . . . . . 1 . . . . . . . . . . . . . . 1 Operators 6 | . . . 1 . 1 . 1 . . 1 . . . . 1 1 . . . . Skim 45 | . 8 . 5 . 6 3 3 3 . 3 . . . . 10 1 2 1 . . Fabricators 18 | . . . . . . 2 . . . 7 . . . . 4 4 1 . . . Report 6 | . . . . . . 1 . . . 2 . . . . 1 2 . . . . Liberate 9 | . . . . . . 1 . . . 2 . . . . 3 2 1 . . . Haulers 2 | . . . . . . . . . . 2 . . . . . . . . . . Overload 1 | . . . . . . . . . . 1 . . . . . . . . . . Repair Stations . | . . . . . . . . . . . . . . . . . . . . . Recycling Units 25 | . 2 . 1 . 1 . . 4 . 7 . . . . 8 1 . 1 . . Tunnel 8 | . 2 . 1 . 1 . . 4 . . . . . . . . . . . . Fedlink 17 | . . . . . . . . . . 7 . . . . 8 1 . 1 . . Scanalyzers 2 | . . . 1 . . . . . . 1 . . . . . . . . . . Extract 2 | . . . 1 . . . . . . 1 . . . . . . . . . . Garrison Access . | . . . . . . . . . . . . . . . . . . . . . Data Cores Recovered 4 | . 2 . . . 1 . . . . . . . . . . . . . 1 . Used 2 | . 2 . . . . . . . . . . . . . . . . . . . Hacking Detections 113 | . 9 . 12 1 10 10 5 7 . 16 . . . . 20 6 8 4 3 2 Full Trace Events 8 | . . . 1 . 1 2 . 1 . . . . . . 3 . . . . . Feedback Events 1 | . . . . . . . . . . . . . . . 1 . . . . . Corruption 1 | . . . . . . . . . . . . . . . 1 . . . . . Feedback Blocked 1 | . . . . . . . . . . . . . . . 1 . . . . . Robot Schematics Acquired 3 | . . . . . . . . . . . . . . . . . . . . 3 Robots Built . | . . . . . . . . . . . . . . . . . . . . . Authchips . | . . . . . . . . . . . . . . . . . . . . . Time . | . . . . . . . . . . . . . . . . . . . . . Total Robot Build Rating . | . . . . . . . . . . . . . . . . . . . . . Part Schematics Acquired 22 | . . . 11 . . . . . . 6 . . . . . . 1 . . 4 Parts Built . | . . . . . . . . . . . . . . . . . . . . . Authchips . | . . . . . . . . . . . . . . . . . . . . . Time . | . . . . . . . . . . . . . . . . . . . . . Total Part Build Rating . | . . . . . . . . . . . . . . . . . . . . . Parts Repaired 8 | . . . 2 . 1 . 2 . . 1 . . . . . . 1 1 . . Time 260 | . . . 58 . 60 . 41 . . 19 . . . . . . 20 62 . . Parts Recycled . | . . . . . . . . . . . . . . . . . . . . . Recycled Matter . | . . . . . . . . . . . . . . . . . . . . . Retrieved Matter . | . . . . . . . . . . . . . . . . . . . . . Retrieved Components 34 | . 9 . 9 . . . . . . 6 . . . . 10 . . . . . Parts Scanalyzed 3 | . . . 2 . . . . . . 1 . . . . . . . . . . Part Schematics Acquired 3 | . . . 2 . . . . . . 1 . . . . . . . . . . Parts Damaged . | . . . . . . . . . . . . . . . . . . . . . Bothacking | -11 -10 -10 -9 -9 -8 -7 -7 -7 -7 -5 -5 -5 -5 -4 -4 -3 -3 -2 -2 -2 ------------ Run | Yrd Mat Min Mat Min Mat Fac Sto Rec Scr Fac Upp Upp War Pro Fac Res Tes Res Qua Sec Used RIF Installer . | . . . . . . . . . . . . . . . . . . . . . Robots Hacked 2 | . . . . . . . . 2 . . . . . . . . . . . . Non-combat 2 | . . . . . . . . 2 . . . . . . . . . . . . Combat . | . . . . . . . . . . . . . . . . . . . . . Robot Hacks Applied 2 | . . . . . . . . 2 . . . . . . . . . . . . no_distress 2 | . . . . . . . . 2 . . . . . . . . . . . . Relay Couplers Released 5 | . . . . . 3 2 . . . . . . . . . . . . . . Machine Destruction 5 | . . . . . 3 2 . . . . . . . . . . . . . . Fabnet Peak Effective % . | . . . . . . . . . . . . . . . . . . . . . Robots Rewired 11 | . . . . . . . . 10 . . . . . . . . 1 . . . Allies Hacked 2 | . . . . . . . . 1 . . . . . . . . . . 1 . Hacks Repelled . | . . . . . . . . . . . . . . . . . . . . . Allies | -11 -10 -10 -9 -9 -8 -7 -7 -7 -7 -5 -5 -5 -5 -4 -4 -3 -3 -2 -2 -2 -------- Run | Yrd Mat Min Mat Min Mat Fac Sto Rec Scr Fac Upp Upp War Pro Fac Res Tes Res Qua Sec Total Allies 20 | . . 1 . . . . . 10 . 2 . . . . . . 1 1 2 3 Largest Group 9 | . . 1 . . . . . 9 9 9 . . . . . . 1 1 2 1 Highest-Rated Group 1204 | . . 31 . . . . . 173 173 173 . . . . . . 121 45 90 1204 Highest-Rated Ally 1204 | . . 31 . . . . . 40 40 40 . . . . . . 121 45 45 1204 Total Orders . | . . . . . . . . . . . . . . . . . . . . . Ally Attacks 188 | . . . . . . . . 8 . 56 . . . . . . . . . 124 Total Damage 15258 | . . . . . . . . 133 . 1306 . . . . . . . . . 13819 Kills 43 | . . . . . . . . 1 . 9 . . . . . . . . . 33 Allies Corrupted 2 | . . . . . . . . . . . . . . . . . 1 . 1 . Allies Melted . | . . . . . . . . . . . . . . . . . . . . . Intel | -11 -10 -10 -9 -9 -8 -7 -7 -7 -7 -5 -5 -5 -5 -4 -4 -3 -3 -2 -2 -2 ------- Run | Yrd Mat Min Mat Min Mat Fac Sto Rec Scr Fac Upp Upp War Pro Fac Res Tes Res Qua Sec Active Infowar (turns) 18585 | . 944 1186 1594 . 2366 1834 393 987 2066 1705 1004 157 354 135 1491 297 523 448 446 655 Optics 6261 | . . . . . . . . . . 751 1004 157 354 135 1491 297 523 448 446 655 Sensors 9957 | . . . . . . . 179 987 2066 1529 999 157 354 135 1379 297 502 436 446 491 Terrain 1197 | . . . . . 1195 . . . . . . . . . . 2 . . . . Structural 1621 | . . . . . . . . . . . . . . . . 143 520 448 446 64 Traps 103 | . . . . . . . . . . . . . . 103 . . . . . . Seismic 6943 | . 944 1186 1594 . 1171 1834 214 . . . . . . . . . . . . . Cloaking 142 | . . . . . . . . . . . . . . . . . . 14 29 99 Jamming 20 | . . . . . . . . . . 20 . . . . . . . . . . ECM 541 | . . . . . . . . . . 200 7 . 34 . 145 15 99 . 33 8 Robot Analysis Total 9 | . . . . . . 1 . . 8 . . . . . . . . . . . Derelict Logs Recovered 9 | . . 3 . 2 . . . . . . 1 2 . 1 . . . . . . Drone Launches . | . . . . . . . . . . . . . . . . . . . . . Drone Recoveries . | . . . . . . . . . . . . . . . . . . . . . Exploration | -11 -10 -10 -9 -9 -8 -7 -7 -7 -7 -5 -5 -5 -5 -4 -4 -3 -3 -2 -2 -2 ------------- Run | Yrd Mat Min Mat Min Mat Fac Sto Rec Scr Fac Upp Upp War Pro Fac Res Tes Res Qua Sec Turns Passed 21410 | 329 1280 1186 2714 781 2482 1835 430 987 2066 1808 1004 157 354 135 1491 297 523 448 446 657 Spaces Moved 21706 | 125 642 475 1108 460 1139 928 165 503 1242 2374 1605 501 984 379 3563 659 1157 1051 1232 1414 Core 10 | 2 . . . . . . . . . 1 . . . . . 3 1 . . 3 Treads 6947 | 123 642 475 1108 460 979 928 165 503 1242 322 . . . . . . . . . . Legs . | . . . . . . . . . . . . . . . . . . . . . Wheels 160 | . . . . . 160 . . . . . . . . . . . . . . . Hover . | . . . . . . . . . . . . . . . . . . . . . Flight 14343 | . . . . . . . . . . 2051 1605 501 984 379 3563 656 1156 1051 1232 1165 Fastest Speed 23 | 50 160 160 160 160 101 160 164 162 164 23 26 28 28 26 27 31 28 28 26 26 Average Speed 72 | 158 160 160 160 160 153 161 164 163 164 46 27 28 28 27 28 34 29 28 26 30 Slowest Speed 950 | 160 160 160 160 160 400 166 164 164 164 950 29 28 28 32 110 700 600 28 28 184 Overloaded Moves . | . . . . . . . . . . . . . . . . . . . . . Propulsion Burnouts . | . . . . . . . . . . . . . . . . . . . . . Robots Hopped 136 | . . . . . . . . . . 19 3 . . 2 32 . 42 7 19 12 Potential Cave-ins 1 | . . . . . . 1 . . . . . . . . . . . . . . Cave-ins Triggered . | . . . . . . . . . . . . . . . . . . . . . Teleports 3 | . . . . . . . . . . . . . . . . . . . . 3 Microwarps 14 | . . . . . . . . . . . . . . . . . . . . 14 Exploration Rate (%) 73 | 5 99 97 94 96 98 30 40 99 92 66 99 81 97 63 85 21 93 31 87 71 Regions Visited 20 Branch Regions 12 Pre-discovered Areas 21 | . 4 1 3 2 2 . . 4 . 1 . 1 . 1 2 . . . . . Known Exits Taken 18 | . . 1 1 1 1 1 1 1 1 1 1 1 1 1 1 1 1 1 1 . Unknown Exits Taken 2 | 1 1 . . . . . . . . . . . . . . . . . . . Scrap Searched 16 | . . 1 . 3 . . . . 4 . 4 3 . 1 . . . . . . Spaces Dug 204 | . . . . 21 6 5 . . . 39 6 1 . . 74 11 11 19 10 1 Terrain Destroyed 648 | . . . 31 81 136 14 26 21 . 148 12 1 . . 126 11 11 19 10 1 Melee 172 | . . . . . 6 5 . . . 33 1 1 . . 74 11 11 19 10 1 Projectile 62 | . . . . . 6 . 9 21 . 24 . . . . 2 . . . . . AOE 414 | . . . 31 81 124 9 17 . . 91 11 . . . 50 . . . . . Terrain Rammed . | . . . . . . . . . . . . . . . . . . . . . Walls Destroyed . | . . . . . . . . . . . . . . . . . . . . . Machines Disabled . | . . . . . . . . . . . . . . . . . . . . . Actions | -11 -10 -10 -9 -9 -8 -7 -7 -7 -7 -5 -5 -5 -5 -4 -4 -3 -3 -2 -2 -2 --------- Run | Yrd Mat Min Mat Min Mat Fac Sto Rec Scr Fac Upp Upp War Pro Fac Res Tes Res Qua Sec Total 25727 | 206 804 846 1807 487 1636 1130 267 605 1272 2885 2091 515 1060 407 3866 708 1271 1165 1291 1408 Wait 2571 | 35 80 332 381 1 217 53 52 22 22 345 392 10 68 19 148 11 110 88 39 146 Move 21197 | 124 641 474 1107 459 1138 927 164 502 1241 2335 1598 500 983 374 3501 658 1080 1036 1195 1160 Hop 121 | . . . . . . . . . . 19 3 . . 2 29 . 34 7 17 10 Pick Up 168 | 10 14 4 24 3 33 15 3 3 . 13 2 3 2 . 21 3 4 5 2 4 Fast Attach 117 | 6 2 . 6 . 6 11 2 . 4 13 5 . 2 2 11 9 6 2 6 24 Attach 102 | . . 3 5 3 21 5 4 . . 18 10 . 1 1 18 . 2 3 . 8 Detach 42 | . . . 2 . 3 2 . . 1 4 10 . . . 8 3 1 . 1 7 Swap 89 | . 4 . 17 6 22 13 5 7 . 2 . . 1 . 7 . 1 1 2 1 Drop 165 | 5 9 2 26 . 20 23 1 5 4 11 4 1 2 1 16 8 8 2 2 15 Fire 606 | 26 43 27 146 13 125 44 26 28 . 68 54 . . . 6 . . . . . Melee 364 | . . . . . 28 34 . 26 . 44 13 1 . . 101 16 20 21 27 33 Ram . | . . . . . . . . . . . . . . . . . . . . . Kick . | . . . . . . . . . . . . . . . . . . . . . Crush 91 | . 11 4 20 2 23 3 10 11 . 7 . . . . . . . . . . Escape Stasis 14 | . . . . . . . . . . 6 . . . 8 . . . . . . Rewire 6 | . . . . . . . . 1 . . . . . . . . 5 . . . Trap 73 | . . . 73 . . . . . . . . . . . . . . . . . Miscellaneous 1 | . . . . . . . . . . . . . 1 . . . . . . . Route ------- -11/Scrapyard -10/Materials (discovered 5 exits: *Mat x3 / [*Min] / *Sub) -10/Mines (discovered 3 exits: *Mat x2 / *Sub) -9/Materials (discovered 5 exits: *Mat x3 / *Min x2) -9/Mines (discovered 3 exits: *Mat x2 / [*Exi]) -8/Materials (discovered 3 exits: *Fac x3) -7/Factory (discovered 5 exits: Fac x2 / *Sto / *Low x2) -7/Storage -7/Recycling (discovered 2 exits: *Fac / *Scr) -7/Scraptown (discovered 2 exits: *Fac x2) -5/Factory (discovered 5 exits: *Fac x3 / *Upp x2) -5/Upper Caves -5/Upper Caves -5/Warlord -4/Proximity Caves -4/Factory (discovered 9 exits: *Res x4 / *Upp x2 / *Ext x2 / Arm) -3/Research (discovered 5 exits: *Res x3 / *Tes x2) -3/Testing -2/Research (discovered 2 exits: *Qua x2) -2/Quarantine (discovered 2 exits: *Sec / *Frg) -2/Section 7 History --------- Turn | Location | Event 10 | -11/Scrapyard | Discovered new exit (range 15) 330 | -11/Scrapyard | Entered Materials 331 | -10/Materials | Build established: Mutant 744 | -10/Materials | Discovered new exit (range 11) 927 | -10/Materials | Discovered new exit (range 8) 1011 | -10/Materials | Discovered new exit (range 16) 1041 | -10/Materials | Identified exit to Materials 1041 | -10/Materials | Identified exit to Subcaves 1062 | -10/Materials | Learned Storage trap positions 1073 | -10/Materials | Learned Storage emergency access door positions 1076 | -10/Materials | Learned Materials emergency access door positions 1077 | -10/Materials | Learned location of Storage (-7) 1094 | -10/Materials | Learned location of Subcaves (-10) 1116 | -10/Materials | Learned 4 Recycling zone layouts 1610 | -10/Materials | Entered Mines 2083 | -10/Mines | Learned Materials security intel 2176 | -10/Mines | Core integrity fell below 50% 2328 | -10/Mines | Received a Mining Laser from a helpful Derelict 2532 | -10/Mines | Discovered exit to Subcaves (range 6) 2796 | -10/Mines | Entered Materials 2796 | -9/Materials | Evolved 2 slots: Propulsion x2 2834 | -9/Materials | Repaired Lgt. Treads 3340 | -9/Materials | Discovered new exit (range 8) 3384 | -9/Materials | Build established: Scavenger-Mutant 3801 | -9/Materials | Discovered new exit (range 3) 4416 | -9/Materials | Build established: Mutant 4808 | -9/Materials | Discovered new exit (range 16) 5063 | -9/Materials | Identified exit to Materials 5079 | -9/Materials | Repaired Imp. Treads 5181 | -9/Materials | Loaded intel: 20 trap records 5225 | -9/Materials | Identified exit to Mines 5225 | -9/Materials | Learned location of 2 exits from Materials 5371 | -9/Materials | Learned Materials emergency access door positions 5510 | -9/Materials | Entered Mines 5532 | -9/Mines | Assembled infested the area 5579 | -9/Mines | Destroyed 7 combat bots 5582 | -9/Mines | Core integrity fell below 50% 5610 | -9/Mines | Lost 3 parts (1n1u1w) 5627 | -9/Mines | A weapon hastily lodged in a ceiling crevice suddenly fell to the ground 5819 | -9/Mines | Deemed a non-threat by the Exiles lab entrance 5819 | -9/Mines | Discovered new exit (range 5) 6022 | -9/Mines | Learned location of Zion (-6) 6291 | -9/Mines | Entered Materials 6291 | -8/Materials | Evolved 2 slots: Utility x2 6292 | -8/Materials | Identified exit to Factory 6461 | -8/Materials | Lost 3 parts (1p1n1u) 6564 | -8/Materials | Core integrity fell below 50% 6604 | -8/Materials | Lost 12 parts (1p6n2u3w) 6845 | -8/Materials | Build established: Scavenger-Mutant 7107 | -8/Materials | Discovered exit to Factory (range 3) 7396 | -8/Materials | Learned location of 1 exit from Recycling 7397 | -8/Materials | Learned Storage stockpile data 7398 | -8/Materials | Learned location of 1 exit from Lower Caves 7569 | -8/Materials | Destroyed 8 combat bots 7574 | -8/Materials | Lost 3 parts (1p2u) 7662 | -8/Materials | Core integrity fell below 20% 7758 | -8/Materials | Repaired Enh. Autogun 8773 | -8/Materials | Entered Factory 8773 | -7/Factory | Evolved 2 slots: Propulsion x1, Utility x1 8774 | -7/Factory | Identified exit to Factory 8774 | -7/Factory | Identified exit to Storage 8774 | -7/Factory | Identified exit to Lower Caves 9381 | -7/Factory | Lost 4 parts (2n1u1w) 9924 | -7/Factory | Build established: Mutant 10532 | -7/Factory | Cargo convoy interrupted 10608 | -7/Factory | Entered Storage 10609 | -7/Storage | Loaded intel: 21 trap records 10708 | -7/Storage | Repaired Med. Treads 10729 | -7/Storage | Repaired Nuclear Core 10784 | -7/Storage | Destroyed 7 combat bots 11021 | -7/Storage | Used back door to open Recycling access 11021 | -7/Storage | Discovered new exit (range 5) 11036 | -7/Storage | Identified exit to Recycling 11038 | -7/Storage | Entered Recycling 11039 | -7/Recycling | Identified exit to Scraptown 11040 | -7/Recycling | Identified exit to Factory 11608 | -7/Recycling | Build established: Commander-Mutant 11973 | -7/Recycling | Scanned before Scraplab entrance 11998 | -7/Recycling | Entered Scraplab 12025 | -7/Recycling | Entered Scraptown 12025 | -7/Scraptown | Accompanied by 9 allies 12025 | -7/Scraptown | System corruption cleaned by C-Scrubber 12332 | -7/Scraptown | Discovered exit to Factory (range 11) 12447 | -7/Scraptown | Visited Symbiants 12511 | -7/Scraptown | Visited UFD Registry 12511 | -7/Scraptown | Registered with UFD as "Flexisys" 12531 | -7/Scraptown | Visited Cyclists 12554 | -7/Scraptown | Entered Cyclist Reading Room 12591 | -7/Scraptown | Visited Cave Peace 12668 | -7/Scraptown | Visited Red Mages 12734 | -7/Scraptown | Visited Assassins FH 12983 | -7/Scraptown | Visited Comm Corps 13072 | -7/Scraptown | Visited Abandonware Association 13088 | -7/Scraptown | Learned abandonware demo "KABOOM.EXE" 13088 | -7/Scraptown | Learned abandonware demo "REBOOT5.EXE" 13128 | -7/Scraptown | Visited Junk Cannon Lab 13140 | -7/Scraptown | Found Prototype Special Weapon 13140 | -7/Scraptown | Identified Junk Cannon 13193 | -7/Scraptown | Visited Derelict Rescue Squad 13413 | -7/Scraptown | Visited Observation Area 13474 | -7/Scraptown | Visited Analyses Database 13510 | -7/Scraptown | Visited Scrap Suit Storage 13547 | -7/Scraptown | Visited Science Guys 13600 | -7/Scraptown | Visited Infowarlord's Domain 13613 | -7/Scraptown | Found Exp. Sensor Array 13651 | -7/Scraptown | Visited Curators Association 13685 | -7/Scraptown | Visited Scrapoid Research Area 13968 | -7/Scraptown | Met Optimus 13968 | -7/Scraptown | Accepted into 0bPrime 14058 | -7/Scraptown | Discovered exit to Factory (range 5) 14091 | -7/Scraptown | Entered Factory 14091 | -5/Factory | Accompanied by 9 allies 14091 | -5/Factory | Evolved 4 slots: Propulsion x1, Utility x3 14145 | -5/Factory | Garrison activated, responded to threat 14217 | -5/Factory | Lost 5 allies 14580 | -5/Factory | Build established: Mutant 14736 | -5/Factory | Garrison activated, responded to threat 14769 | -5/Factory | Lost 3 parts (1p2n) 15086 | -5/Factory | Lost 11 parts (2p5n2u2w) 15115 | -5/Factory | Loaded intel: 8 recycling unit locations 15162 | -5/Factory | Learned location of Protoforge (-2) 15203 | -5/Factory | Discovered new exit (range 5) 15206 | -5/Factory | Identified exit to Factory 15257 | -5/Factory | Lost 4 parts (2n2u) 15277 | -5/Factory | Discovered exit to Factory (range 14) 15291 | -5/Factory | First assault squad dispatched 15557 | -5/Factory | Identified exit to Upper Caves 15630 | -5/Factory | Discovered exit to Factory (range 18) 15761 | -5/Factory | Repaired Cesium-ion Thruster 15899 | -5/Factory | Core integrity fell below 50% 15899 | -5/Factory | Entered Upper Caves 16148 | -5/Upper Caves | Learned location of 1 exit from Factory 16221 | -5/Upper Caves | Build established: Infiltrator-Ninja 16648 | -5/Upper Caves | Attracted the attention of an 0b10 checkpoint 16873 | -5/Upper Caves | Discovered new exit (range 8) 16878 | -5/Upper Caves | Identified exit to Upper Caves 16903 | -5/Upper Caves | Entered another Upper Caves area 16927 | -5/Upper Caves | Learned location of Armory (-4) 16974 | -5/Upper Caves | Learned Factory terminal intel 17028 | -5/Upper Caves | Spotted B-75 Beast 17054 | -5/Upper Caves | Discovered new exit (range 13) 17057 | -5/Upper Caves | Identified exit to Warlord 17060 | -5/Upper Caves | Entered Warlord 17076 | -5/Warlord | Discovered new exit (range 9) 17104 | -5/Warlord | Found Prototype Special Weapon 17104 | -5/Warlord | Identified RU-N14's Throwing Claymores v3 17109 | -5/Warlord | Found RU-N14's Throwing Claymores v3 17115 | -5/Warlord | Found Prototype Device 17115 | -5/Warlord | Identified Minesniffer Drone Bay 17221 | -5/Warlord | Warlord's base attacked by MAIN.C 17247 | -5/Warlord | Found Prototype Piercing Weapon 17297 | -5/Warlord | Rebuked by Warlord 17327 | -5/Warlord | Opened side exit 17330 | -5/Warlord | Spotted B-75 Beast 17404 | -5/Warlord | Spotted B-86 Titan 17414 | -5/Warlord | Identified exit to Proximity Caves 17414 | -5/Warlord | Entered Proximity Caves 17523 | -4/Proximity Caves | Attracted the attention of an 0b10 checkpoint 17542 | -4/Proximity Caves | Discovered exit to Factory (range 21) 17549 | -4/Proximity Caves | Entered Factory 17549 | -4/Factory | Evolved 2 slots: Utility x2 17550 | -4/Factory | Identified exit to Research 17551 | -4/Factory | Loaded intel: 27 terminal locations 17555 | -4/Factory | Identified exit to Upper Caves 17555 | -4/Factory | Identified exit to Extension 17555 | -4/Factory | Identified exit to Armory 17649 | -4/Factory | Found Exp. Signal Interpreter 17751 | -4/Factory | Learned Research fabricator intel 17796 | -4/Factory | Discovered exit to Research (range 13) 17846 | -4/Factory | Build established: Derelict-Ninja 17849 | -4/Factory | Loaded intel: 8 recycling unit locations 17850 | -4/Factory | Learned Research security intel 17890 | -4/Factory | Discovered exit to Research (range 11) 18198 | -4/Factory | Identified Vortex Lance 18437 | -4/Factory | Learned location of Archives (-4) 18549 | -4/Factory | First assault squad dispatched 18551 | -4/Factory | Spotted B-86 Titan 18585 | -4/Factory | Lost 5 parts (1p2n1u1w) 18696 | -4/Factory | Lost 3 parts (2n1u) 18709 | -4/Factory | Spotted B-86 Titan 18799 | -4/Factory | Search patrols dispatched 19040 | -4/Factory | Entered Research 19040 | -3/Research | Evolved 2 slots: Utility x2 19041 | -3/Research | Identified exit to Research 19041 | -3/Research | Identified exit to Testing 19043 | -3/Research | Loaded intel: 4 fabricator locations 19168 | -3/Research | Build established: Hacker-Ninja 19310 | -3/Research | Loaded intel: 5 recycling unit locations 19337 | -3/Research | Entered Testing 19372 | -3/Testing | Found Exp. Signal Interpreter 19405 | -3/Testing | Repaired Lgt. Antimatter Reactor 19419 | -3/Testing | Rewired PL-2GWHAGE6F9 19578 | -3/Testing | Discovered exit to Research (range 12) 19822 | -3/Testing | Spotted Striker 19860 | -3/Testing | Entered Research 19860 | -2/Research | Evolved 2 slots: Propulsion x2 19874 | -2/Research | Lost 4 parts (2n2u) 19877 | -2/Research | Spotted B-90 Cyclops 19943 | -2/Research | Repaired Lgt. Antimatter Reactor? 19974 | -2/Research | Spotted B-90 Cyclops 20025 | -2/Research | Loaded intel: 5 recycling unit locations 20143 | -2/Research | Identified exit to Quarantine 20308 | -2/Research | Entered Quarantine 20322 | -2/Quarantine | Found Alien Reactor 20322 | -2/Quarantine | Identified Matter Drive 20383 | -2/Quarantine | Found Alien Artifact 20383 | -2/Quarantine | Identified Terrabomb 20383 | -2/Quarantine | Used Terrabomb 20395 | -2/Quarantine | Found Terrabomb 20665 | -2/Quarantine | Met incapacitated Sigix Warrior 20665 | -2/Quarantine | Lockdown squad dispatched 20669 | -2/Quarantine | Found Sigix Containment Pod 20671 | -2/Quarantine | Acquired the access code to the Sigix quarantine chamber 20681 | -2/Quarantine | Spotted Lightning 20686 | -2/Quarantine | Spotted Lightning 20686 | -2/Quarantine | Spotted Lightning 20734 | -2/Quarantine | Spotted Fortress 20752 | -2/Quarantine | Discovered new exit (range 6) 20752 | -2/Quarantine | Discovered new exit (range 7) 20753 | -2/Quarantine | Identified exit to Protoforge 20754 | -2/Quarantine | Identified exit to Section 7 20754 | -2/Quarantine | Entered Section 7 20808 | -2/Section 7 | Found Alien Artifact 20808 | -2/Section 7 | Identified Microwarp Drive 20849 | -2/Section 7 | Spotted Alpha 7 20850 | -2/Section 7 | Spotted Alpha 7 20852 | -2/Section 7 | Spotted B-99 Colossus 20881 | -2/Section 7 | Activated Sigix Exoskeleton 20881 | -2/Section 7 | Unable to understand communications from Sigix Warrior 20884 | -2/Section 7 | Spotted Executioner 20884 | -2/Section 7 | Spotted Executioner 20892 | -2/Section 7 | Allies destroyed Executioner 20906 | -2/Section 7 | Destroyed Executioner 20912 | -2/Section 7 | Spotted Striker 20912 | -2/Section 7 | Spotted Striker 20951 | -2/Section 7 | Destroyed Striker 20952 | -2/Section 7 | Allies destroyed Striker 20960 | -2/Section 7 | Unable to understand communications from Sigix Warrior 20975 | -2/Section 7 | Used Terrabomb 20977 | -2/Section 7 | Found Alien Artifact 20977 | -2/Section 7 | Identified Transdimensional Reconstructor 20977 | -2/Section 7 | Warped through subspace 20988 | -2/Section 7 | Found Alien Artifact 20988 | -2/Section 7 | Identified Hpw. Transdimensional Reconstructor 20988 | -2/Section 7 | Warped through subspace 21001 | -2/Section 7 | Core integrity fell below 50% 21050 | -2/Section 7 | Found Alien Energy Gun 21050 | -2/Section 7 | Identified Sigix Sheargun 21057 | -2/Section 7 | Spotted Striker 21057 | -2/Section 7 | Spotted Striker 21071 | -2/Section 7 | Allies destroyed Striker 21080 | -2/Section 7 | Allies destroyed Striker 21088 | -2/Section 7 | Allies destroyed Alpha 7 21111 | -2/Section 7 | Lost 4 parts (1n1u2w) 21123 | -2/Section 7 | Spotted Striker 21132 | -2/Section 7 | Allies destroyed Striker 21135 | -2/Section 7 | Unable to understand communications from Sigix Warrior 21150 | -2/Section 7 | Found Prototype Processor 21150 | -2/Section 7 | Identified Exp. Target Analyzer 21197 | -2/Section 7 | Found Transdimensional Reconstructor 21202 | -2/Section 7 | Found Terrabomb 21203 | -2/Section 7 | Spotted Executioner 21203 | -2/Section 7 | Spotted Executioner 21220 | -2/Section 7 | Allies destroyed Executioner 21279 | -2/Section 7 | Found Alien Artifact 21279 | -2/Section 7 | Identified Integrity Redistributor 21279 | -2/Section 7 | Used Integrity Redistributor, redistributed integrity to core (+59) 21281 | -2/Section 7 | Found Integrity Redistributor 21281 | -2/Section 7 | Used Integrity Redistributor, redistributed integrity to core (+5) 21283 | -2/Section 7 | Found Integrity Redistributor 21283 | -2/Section 7 | Used Integrity Redistributor, redistributed integrity to core (+5) 21298 | -2/Section 7 | Used Terrabomb 21301 | -2/Section 7 | Found Alien Artifact 21301 | -2/Section 7 | Identified LRC Insulator 21301 | -2/Section 7 | Installed LRC Insulator, 1 resistance modified: EM +25% 21340 | -2/Section 7 | Unable to understand communications from Sigix Warrior 21382 | -2/Section 7 | Allies destroyed B-99 Colossus 21383 | -2/Section 7 | Spotted Striker 21387 | -2/Section 7 | Unable to understand communications from Sigix Warrior 21391 | -2/Section 7 | Spotted Executioner 21407 | -2/Section 7 | Warped through subspace 21408 | -2/Section 7 | Spotted Executioner 21410 | -2/Section 7 | Core integrity fell below 20% 21410 | -2/Section 7 | Spotted Executioner 21410 | -2/Section 7 | Spotted Executioner 21410 | -2/Section 7 | Spotted Striker 21411 | -2/Section 7 | Destroyed by G-73 Enforcer with Heavy Laser Last Messages --------------- 21409_ Exp. Target Analyzer destroyed. 21409_ C-30 ARC bursts open, deploying its payload. 21409_ G-73 Enforcer unfolds itself. 21409_ B-74 Champion unfolds itself. 21409_ G-73 Enforcer unfolds itself. 21409_ M-36 Artificer unfolds itself. 21409_ E-15 Imp destroyed. 21409_ Acquired 9 matter. 21409_ Imp. Diametric Drive destroyed. 21409_ Lrn. Sensor Array destroyed. 21409_ C-30 ARC bursts open, deploying its payload. 21409_ Striker unfolds itself. 21409_ Executioner unfolds itself. 21409_ E-15 Imp unfolds itself. 21409_ Penetrated by Slug. 21410_ C-30 ARC bursts open, deploying its payload. 21410_ P-80 Master unfolds itself. 21410_ Executioner unfolds itself. 21410_ I-47 Archangel unfolds itself. 21410_ Penetrated by Slug. Map ----- +----------------------------------------------------+ | ?????????????????????# " "" | | ?????????????????????# " " """ | | ?????????????????????# """ " " | | ?????????????????????#" " " " "" | | ?????????????????????# = " " | | ?????????????????????# % " "" | | ?????????????????????# """""" " " | | ?????????????????????#" "????"""" " "" | | ?????????????????????#" """""" | | ???? ???????????????# | | ???? ???????????????# | | ???# ????????????????" """""" | | ???# ????????????????" "????"""" " | | ???# ????????????????" """""" """"" | | ???# ????????????????" "??? | | ???# ????????????????" """??? | | ???# ??????###???????" "?? | | ???# ??##### ####????" " | | ??## ### #????" """ | | ??# ## [!! #????" "" T | | ??# ## [!! #???#" """" | | ??# H / !!! #???# "??" "" | | ??# !## #???#" """" "" """ "" | | ??#?" ## [ #???#"" """ " | | ????# ## #???#""" = " " "" "? | | ##??# ## #???#"""@=%/ """" " ""? | | #### ## ! #???#""e/%= "????""" "" "?" | | #######+#####"#g h* """""" "?" | | #??# "%"%"g/hlegb """" | | #??# " hgggp g "" | | #??# E pE/g bggg """ "" | | #??# iei /p %m ""?" "%" | | #??# ##### #K mg "?" " | | #??# #???###""" g " """ | | ##?# #?????#""" bg% % | | """ ### #?????#""" % | | """ #?????#"" | | """ #?????#" | | """ #?????# """""""""""" # | | """ #?????# """""""""""" # | | """ """ #?????##################### ###//# | | """ """ #?????????????????????????# #?# # | | """ #?????????????????????????####?# # | | """ #??????????????????????????????# # | | #### """ #??????????????????????????????# # | | ???+ """ #??????????????????????????????# # | | ???# """ #??????????????????????????????# # | | ???# #??????????????????????????????#% # | | ???# #???????????????????############%!# | | ???# #???????????????????# !%%! | +----------------------------------------------------+ Best States ------------- Heat Dissipation 49 Energy Generation 25 Energy Capacity 290 Matter Stores 300 Matter Capacity 300 Sight Range 22 Robot Scan Range 20 Terrain Scan Range 16 Terrain Scan Density 85 ECM Strength 2 Jamming Range 14 Cloak Strength 3 Corruption Containment 36 Corruption Block 19 Armor Coverage 600 Resistance: TH 10 Resistance: EM 25 Evasion (%) 65 Targeting Accuracy 8 Target Analysis 10 Recoil Reduction 6 Offensive Hacking 28 Defensive Hacking 24 Authchip Count 1 Item Schematics ----------------- Seismic Detector | -9/Materials | Scanalyzed Imp. Terrain Scanner | -9/Materials | Scanalyzed Adv. Beam Cannon | -9/Materials | Extracted Particle Gun | -9/Materials | Extracted Imp. Aluminum Leg | -9/Materials | Extracted Lgt. Ion Engine | -9/Materials | Extracted Particle Cannon | -9/Materials | Extracted Imp. Treads | -9/Materials | Extracted Lrg. Storage Unit | -9/Materials | Extracted Flail | -9/Materials | Extracted Med. Storage Unit | -9/Materials | Extracted Mni. Grenade Launcher | -5/Factory | Scanalyzed Flak Gun | -5/Factory | Extracted Point Defense System | -5/Factory | Extracted Imp. Trap Scanner | -5/Factory | Extracted Imp. Power Shielding | -5/Factory | Extracted Great Axe | -5/Factory | Extracted Lgt. Regenerative Plating | -3/Testing | Hacked Cld. Antigrav System | -2/Section 7 | Archive Hvy. Tesla Rifle | -2/Section 7 | Archive Imp. Energy Well | -2/Section 7 | Archive Kinetic Spear | -2/Section 7 | Archive Robot Schematics ------------------ T-07 Excavator | -2/Section 7 | Archive B-74 Champion | -2/Section 7 | Archive A-15 Conveyor | -2/Section 7 | Archive Fabricated ------------ Nothing Repaired ---------- Lgt. Treads | 31% | -9/Materials Imp. Treads | 62% | -9/Materials Enh. Autogun | 4% | -8/Materials Med. Treads | 34% | -7/Storage Nuclear Core | 18% | -7/Storage Cesium-ion Thruster | 20% | -5/Factory Lgt. Antimatter Reactor | 1% | -3/Testing Lgt. Antimatter Reactor | 14% | -2/Research Alien Tech Used ----------------- Matter Drive Terrabomb Microwarp Drive Transdimensional Reconstructor High-powered Transdimensional Reconstructor Sigix Sheargun Integrity Redistributor LRC Insulator Achievements -------------- Everyone Must Die Challenges ------------ None Game ------ Seed HybridArcSteel Manual? 0 Play Time 04:31:29 Cumulative 259.4 hours Start 2025.08.20 @ 14:42:25 End 2025.08.26 @ 14:16:05 Sessions 26 Manual Loads 0 Difficulty Rogue Special Mode None Game No. 139 Rogue 136 Adventurer 3 Explorer 0 Win Type - Total 5 Types 4/0/1/0/0/0/0/0/0/0 Lore% 73 Gallery% 70 Achievement% 59 Wizard Run 0 Options --------- Layout 0 ASCII 0 Keyboard 1 Movement Vi Keybinds 0 Fullscreen 1 Font 18/SmallcapsGlow Map View 76x50 Zoom Use 0% Tactical HUD 1 Map Filters NONE Filters NONE Steam X RUN: ff9abf9a-338d-4575-87ab-109b35d8dbff